fUSD/lending_fUSD_20260506
["ID","MTS","AMOUNT","RATE_DAILY","PERIOD"]
[421698693,1778046737000,-607.81341,0.00042,120]
[421698700,1778046737000,-278.092369,0.00042,120]
[421698686,1778046737000,-243.725788,0.00042,30]
[421698691,1778046737000,-1529.201548,0.00042,120]
[421698688,1778046737000,-1529.201548,0.00042,120]
[421698687,1778046737000,-607.81341,0.00042,120]
[421698690,1778046737000,-607.81341,0.00042,120]
[421698689,1778046737000,-243.725788,0.00042,30]
[421698695,1778046737000,-210.33,0.00042,120]
[421698696,1778046737000,-151.0,0.00042,120]
[421698697,1778046737000,-151.0,0.00042,120]
[421698698,1778046737000,-159.663309,0.00042,120]
[421698701,1778046737000,-278.092369,0.00042,120]
[421698682,1778046737000,-1920.959522,0.00042,28]
[421698683,1778046737000,-1529.201548,0.00042,120]
[421698674,1778046737000,-40395.73987789,0.00042,7]
[421698648,1778046737000,-649.209857,0.00042,120]
[421698671,1778046737000,-253.501076,0.00042,120]
[421698644,1778046737000,-7844.41944267,0.00042,120]
[421698645,1778046737000,-50000.0,0.00042,120]
[421698646,1778046737000,-700.0,0.00042,120]
[421698647,1778046737000,-151.0,0.00042,120]
[421698654,1778046737000,-649.209857,0.00042,120]
[421698656,1778046737000,-400.729559,0.00042,120]
[421698653,1778046737000,-400.729559,0.00042,120]
[421698651,1778046737000,-649.209857,0.00042,120]
[421698657,1778046737000,-151.0,0.00042,120]
[421698649,1778046737000,-649.209857,0.00042,120]
[421698655,1778046737000,-269.120346,0.00042,120]
[421698652,1778046737000,-269.120346,0.00042,120]
[421698672,1778046737000,-151.0,0.00042,60]
[421698650,1778046737000,-269.120346,0.00042,120]
[421698658,1778046737000,-269.120346,0.00042,120]
[421698669,1778046737000,-151.0,0.00042,120]
[421698670,1778046737000,-218.23267,0.00042,120]
[421698668,1778046737000,-878.136391,0.00042,60]
[421698661,1778046737000,-400.729559,0.00042,120]
[421698665,1778046737000,-878.136391,0.00042,60]
[421698660,1778046737000,-151.0,0.00042,120]
[421698662,1778046737000,-151.0,0.00042,120]
[421698663,1778046737000,-2088.94,0.00042,120]
[421698666,1778046737000,-878.136391,0.00042,60]
[421698667,1778046737000,-878.136391,0.00042,60]
[421698664,1778046737000,-927.7,0.00042,120]
[421698659,1778046737000,-400.729559,0.00042,120]
[421698704,1778046737000,-151.0,0.00042,30]
[421698757,1778046737000,-242.15909246,0.00042315,2]
[421698699,1778046737000,-151.0,0.00042,120]
[421698732,1778046737000,-151.0,0.000422,30]
[421698740,1778046737000,-150.0,0.00042278,120]
[421698734,1778046737000,-241.35083,0.000422,30]
[421698737,1778046737000,-1000.0,0.0004225,120]
[421698730,1778046737000,-151.0,0.000422,30]
[421698735,1778046737000,-165.004399,0.000422,120]
[421698731,1778046737000,-165.004399,0.000422,120]
[421698742,1778046737000,-150.0,0.00042278,120]
[421698745,1778046737000,-153.0,0.000423,120]
[421698746,1778046737000,-153.0,0.000423,120]
[421698749,1778046737000,-205.440149,0.000423,120]
[421698747,1778046737000,-43867.11269224,0.000423,120]
[421698738,1778046737000,-1260.10021763,0.00042265,30]
[421698744,1778046737000,-5432.2,0.000423,30]
[421698751,1778046737000,-205.440149,0.000423,120]
[421698750,1778046737000,-205.440149,0.000423,120]
[421698748,1778046737000,-73376.0,0.000423,60]
[421698753,1778046737000,-5000.0,0.00042313,15]
[421698754,1778046737000,-10000.0,0.00042313,15]
[421698702,1778046737000,-278.092369,0.00042,120]
[421698755,1778046737000,-5000.0,0.00042313,30]
[421698756,1778046737000,-10000.0,0.00042313,30]
[421698758,1778046737000,-418.0,0.00042336,2]
[421698760,1778046737000,-33516.32719632,0.00042345,120]
[421698759,1778046737000,-209.0,0.0004234,2]
[421698761,1778046737000,-1142.1,0.00042347,120]
[421698752,1778046737000,-205.440149,0.000423,120]
[421698733,1778046737000,-151.0,0.000422,30]
[421698743,1778046737000,-4500.0,0.000423,30]
[421698739,1778046737000,-1131.05,0.00042272,2]
[421698703,1778046737000,-278.092369,0.00042,120]
[421698705,1778046737000,-151.0,0.00042,30]
[421698707,1778046737000,-151.0,0.00042,120]
[421698736,1778046737000,-165.004399,0.000422,120]
[421698706,1778046737000,-151.0,0.00042,30]
[421698714,1778046737000,-2000.0,0.0004218,120]
[421698710,1778046737000,-151.0,0.00042,120]
[421698715,1778046737000,-2000.0,0.0004218,120]
[421698712,1778046737000,-150.0,0.00042028,120]
[421698711,1778046737000,-1383.34011487,0.0004201,2]
[421698709,1778046737000,-151.0,0.00042,120]
[421698708,1778046737000,-151.0,0.00042,120]
[421698713,1778046737000,-250.0,0.0004211,102]
[421698716,1778046737000,-2000.0,0.0004218,120]
[421698717,1778046737000,-2000.0,0.0004218,120]
[421698721,1778046737000,-782.0,0.00042192,120]
[421698718,1778046737000,-2000.0,0.0004218,120]
[421698729,1778046737000,-151.0,0.000422,30]
[421698728,1778046737000,-151.0,0.000422,30]
[421698724,1778046737000,-652.82,0.000422,120]
[421698726,1778046737000,-165.004399,0.000422,120]
[421698727,1778046737000,-151.0,0.000422,30]
[421698741,1778046737000,-150.0,0.00042278,120]
[421698723,1778046737000,-260.68,0.000422,14]
[421698720,1778046737000,-1560.0,0.00042192,120]
[421698722,1778046737000,-10626.36,0.000422,14]
[421698719,1778046737000,-350.0,0.00042183,4]
[421698725,1778046737000,-32122.41899674,0.000422,2]
[421698787,1778046738000,-800.0,0.00042454,60]
[421698795,1778046738000,-500.0,0.00042464,120]
[421698790,1778046738000,-670.0,0.00042454,60]
[421698788,1778046738000,-800.0,0.00042454,60]
[421698798,1778046738000,-500.0,0.00042464,120]
[421698789,1778046738000,-800.0,0.00042454,60]
[421698791,1778046738000,-223.19296789,0.00042455,7]
[421698792,1778046738000,-151.0,0.00042462,14]
[421698793,1778046738000,-259.20048071,0.00042464,120]
[421698794,1778046738000,-500.0,0.00042464,120]
[421698803,1778046738000,-500.0,0.00042464,120]
[421698797,1778046738000,-500.0,0.00042464,120]
[421698810,1778046738000,-500.0,0.00042464,120]
[421698800,1778046738000,-500.0,0.00042464,120]
[421698801,1778046738000,-500.0,0.00042464,120]
[421698799,1778046738000,-500.0,0.00042464,120]
[421698802,1778046738000,-500.0,0.00042464,120]
[421698807,1778046738000,-500.0,0.00042464,120]
[421698804,1778046738000,-500.0,0.00042464,120]
[421698784,1778046738000,-800.0,0.00042454,60]
[421698796,1778046738000,-500.0,0.00042464,120]
[421698786,1778046738000,-800.0,0.00042454,60]
[421698805,1778046738000,-500.0,0.00042464,120]
[421698781,1778046738000,-13325.7879311,0.0004245,70]
[421698762,1778046738000,-250.0,0.00042349,110]
[421698763,1778046738000,-161.0,0.0004235,120]
[421698764,1778046738000,-418.0,0.00042361,2]
[421698765,1778046738000,-496.69602372,0.00042365,120]
[421698775,1778046738000,-702.14931832,0.00042412,7]
[421698767,1778046738000,-935.69,0.00042366,2]
[421698768,1778046738000,-245.05,0.00042366,2]
[421698769,1778046738000,-700.0,0.00042373,120]
[421698766,1778046738000,-1047.08,0.00042366,2]
[421698770,1778046738000,-243.07,0.00042384,120]
[421698771,1778046738000,-370.41,0.00042384,120]
[421698774,1778046738000,-154.99317027,0.00042412,2]
[421698773,1778046738000,-1434.7391999,0.00042412,28]
[421698772,1778046738000,-310.0,0.00042401,97]
[421698777,1778046738000,-152.6496717,0.00042412,2]
[421698776,1778046738000,-152.64967171,0.00042412,2]
[421698778,1778046738000,-168.0,0.0004245,120]
[421698779,1778046738000,-100348.33562918,0.0004245,60]
[421698780,1778046738000,-202.51179196,0.0004245,70]
[421698782,1778046738000,-1798.80895522,0.00042453,30]
[421698783,1778046738000,-800.0,0.00042454,60]
[421698785,1778046738000,-800.0,0.00042454,60]
[421698809,1778046738000,-500.0,0.00042464,120]
[421698806,1778046738000,-500.0,0.00042464,120]
[421698811,1778046738000,-500.0,0.00042464,120]
[421698838,1778046738000,-190.73919879,0.00042465,120]
[421698836,1778046738000,-547.51,0.00042465,120]
[421698839,1778046738000,-153.25773527,0.00042465,120]
[421698841,1778046738000,-202.08812646,0.00042465,120]
[421698842,1778046738000,-152.32070116,0.00042465,120]
[421698843,1778046738000,-368.17329323,0.00042465,120]
[421698844,1778046738000,-201.26253,0.00042465,120]
[421698845,1778046738000,-1096.29,0.00042465,120]
[421698846,1778046738000,-1096.29,0.00042465,120]
[421698848,1778046738000,-1096.29,0.00042465,120]
[421698847,1778046738000,-1096.29,0.00042465,120]
[421698850,1778046738000,-1096.29,0.00042465,120]
[421698851,1778046738000,-1096.29,0.00042465,120]
[421698852,1778046738000,-1096.29,0.00042465,120]
[421698854,1778046738000,-1096.29,0.00042465,120]
[421698853,1778046738000,-1096.29,0.00042465,120]
[421698857,1778046738000,-1096.29,0.00042465,120]
[421698855,1778046738000,-1096.29,0.00042465,120]
[421698856,1778046738000,-6250.0,0.00042465,120]
[421698858,1778046738000,-6250.0,0.00042465,120]
[421698808,1778046738000,-500.0,0.00042464,120]
[421698834,1778046738000,-547.51,0.00042465,120]
[421698835,1778046738000,-547.51,0.00042465,120]
[421698849,1778046738000,-1096.29,0.00042465,120]
[421698833,1778046738000,-547.51,0.00042465,120]
[421698813,1778046738000,-500.0,0.00042465,120]
[421698837,1778046738000,-547.73034847,0.00042465,120]
[421698814,1778046738000,-547.51,0.00042465,120]
[421698816,1778046738000,-547.51,0.00042465,120]
[421698812,1778046738000,-592.7767285,0.00042464,120]
[421698815,1778046738000,-500.0,0.00042465,120]
[421698820,1778046738000,-547.51,0.00042465,120]
[421698817,1778046738000,-500.0,0.00042465,120]
[421698819,1778046738000,-500.0,0.00042465,120]
[421698818,1778046738000,-547.51,0.00042465,120]
[421698823,1778046738000,-547.51,0.00042465,120]
[421698821,1778046738000,-500.0,0.00042465,120]
[421698830,1778046738000,-547.51,0.00042465,120]
[421698824,1778046738000,-547.51,0.00042465,120]
[421698825,1778046738000,-547.51,0.00042465,120]
[421698826,1778046738000,-547.51,0.00042465,120]
[421698829,1778046738000,-547.51,0.00042465,120]
[421698840,1778046738000,-151.5632544,0.00042465,120]
[421698828,1778046738000,-547.51,0.00042465,120]
[421698827,1778046738000,-547.51,0.00042465,120]
[421698831,1778046738000,-547.51,0.00042465,120]
[421698832,1778046738000,-547.51,0.00042465,120]
[421698822,1778046738000,-547.51,0.00042465,120]
[421698899,1778046739000,-500.0,0.00042465,120]
[421698892,1778046739000,-6250.0,0.00042465,120]
[421698909,1778046739000,-205.3441167,0.00042465,120]
[421698898,1778046739000,-6250.0,0.00042465,120]
[421698900,1778046739000,-500.0,0.00042465,120]
[421698887,1778046739000,-6250.0,0.00042465,120]
[421698895,1778046739000,-6250.0,0.00042465,120]
[421698896,1778046739000,-211.00705243,0.00042465,120]
[421698894,1778046739000,-500.0,0.00042465,120]
[421698893,1778046739000,-500.0,0.00042465,120]
[421698905,1778046739000,-500.0,0.00042465,120]
[421698897,1778046739000,-6250.0,0.00042465,120]
[421698910,1778046739000,-532.46465239,0.00042465,120]
[421698915,1778046739000,-500.0,0.00042465,120]
[421698901,1778046739000,-500.0,0.00042465,120]
[421698903,1778046739000,-500.0,0.00042465,120]
[421698908,1778046739000,-562.85201256,0.00042465,120]
[421698907,1778046739000,-500.0,0.00042465,120]
[421698906,1778046739000,-500.0,0.00042465,120]
[421698902,1778046739000,-500.0,0.00042465,120]
[421698912,1778046739000,-500.0,0.00042465,120]
[421698911,1778046739000,-276.45904597,0.00042465,120]
[421698913,1778046739000,-628.3179824,0.00042465,120]
[421698923,1778046739000,-251.0116995,0.00042465,120]
[421698922,1778046739000,-227.10524456,0.00042465,120]
[421698891,1778046739000,-500.0,0.00042465,120]
[421698904,1778046739000,-500.0,0.00042465,120]
[421698888,1778046739000,-6250.0,0.00042465,120]
[421698865,1778046739000,-6250.0,0.00042465,120]
[421698886,1778046739000,-500.0,0.00042465,120]
[421698862,1778046739000,-6250.0,0.00042465,120]
[421698861,1778046739000,-1096.29,0.00042465,120]
[421698860,1778046739000,-6250.0,0.00042465,120]
[421698859,1778046739000,-1096.29,0.00042465,120]
[421698914,1778046739000,-500.0,0.00042465,120]
[421698864,1778046739000,-1096.29,0.00042465,120]
[421698866,1778046739000,-6250.0,0.00042465,120]
[421698867,1778046739000,-1096.29,0.00042465,120]
[421698869,1778046739000,-1096.29,0.00042465,120]
[421698871,1778046739000,-1096.29,0.00042465,120]
[421698873,1778046739000,-1096.29,0.00042465,120]
[421698872,1778046739000,-6250.0,0.00042465,120]
[421698868,1778046739000,-6250.0,0.00042465,120]
[421698870,1778046739000,-6250.0,0.00042465,120]
[421698876,1778046739000,-6250.0,0.00042465,120]
[421698884,1778046739000,-6250.0,0.00042465,120]
[421698885,1778046739000,-6250.0,0.00042465,120]
[421698883,1778046739000,-6250.0,0.00042465,120]
[421698875,1778046739000,-1096.29,0.00042465,120]
[421698874,1778046739000,-6250.0,0.00042465,120]
[421698877,1778046739000,-1096.29,0.00042465,120]
[421698881,1778046739000,-1096.52553585,0.00042465,120]
[421698878,1778046739000,-6250.0,0.00042465,120]
[421698882,1778046739000,-6250.0,0.00042465,120]
[421698879,1778046739000,-1096.29,0.00042465,120]
[421698880,1778046739000,-6250.0,0.00042465,120]
[421698890,1778046739000,-6250.0,0.00042465,120]
[421698889,1778046739000,-500.0,0.00042465,120]
[421698916,1778046739000,-299.86949851,0.00042465,120]
[421698863,1778046739000,-1096.29,0.00042465,120]
[421698919,1778046739000,-622.20239761,0.00042465,120]
[421698962,1778046739000,-2042.51,0.00042465,120]
[421698954,1778046739000,-2343.98,0.00042465,30]
[421698952,1778046739000,-2343.98,0.00042465,30]
[421698953,1778046739000,-2343.98,0.00042465,30]
[421698955,1778046739000,-2343.98,0.00042465,30]
[421698956,1778046739000,-2343.98,0.00042465,30]
[421698957,1778046739000,-2344.06749327,0.00042465,30]
[421698960,1778046739000,-2042.51,0.00042465,120]
[421698959,1778046739000,-168.32272258,0.00042465,120]
[421698958,1778046739000,-215.7741303,0.00042465,120]
[421698963,1778046739000,-2042.51,0.00042465,120]
[421698966,1778046739000,-2042.51,0.00042465,120]
[421698967,1778046739000,-2042.51,0.00042465,120]
[421698965,1778046739000,-2042.51,0.00042465,120]
[421698971,1778046739000,-2042.51,0.00042465,120]
[421698969,1778046739000,-2042.51,0.00042465,120]
[421698964,1778046739000,-2042.51,0.00042465,120]
[421698973,1778046739000,-2042.51,0.00042465,120]
[421698972,1778046739000,-2042.51,0.00042465,120]
[421698968,1778046739000,-2042.51,0.00042465,120]
[421698970,1778046739000,-2042.51,0.00042465,120]
[421698975,1778046739000,-2042.51,0.00042465,120]
[421698974,1778046739000,-2042.51,0.00042465,120]
[421698976,1778046739000,-2042.51,0.00042465,120]
[421698979,1778046739000,-2042.51,0.00042465,120]
[421698978,1778046739000,-2042.51,0.00042465,120]
[421698920,1778046739000,-217.68951286,0.00042465,120]
[421698950,1778046739000,-2343.98,0.00042465,30]
[421698961,1778046739000,-2042.51,0.00042465,120]
[421698977,1778046739000,-2042.51,0.00042465,120]
[421698945,1778046739000,-2343.98,0.00042465,30]
[421698951,1778046739000,-2343.98,0.00042465,30]
[421698918,1778046739000,-581.21107004,0.00042465,120]
[421698917,1778046739000,-259.69578862,0.00042465,120]
[421698925,1778046739000,-286.13673005,0.00042465,120]
[421698927,1778046739000,-236.99293103,0.00042465,120]
[421698936,1778046739000,-2343.98,0.00042465,30]
[421698926,1778046739000,-500.0,0.00042465,120]
[421698924,1778046739000,-303.97605187,0.00042465,120]
[421698935,1778046739000,-2343.98,0.00042465,30]
[421698929,1778046739000,-189.68472998,0.00042465,31]
[421698928,1778046739000,-299.19344119,0.00042465,120]
[421698932,1778046739000,-241.44759621,0.00042465,120]
[421698930,1778046739000,-500.0,0.00042465,2]
[421698933,1778046739000,-176.53493712,0.00042465,120]
[421698921,1778046739000,-211.94710245,0.00042465,120]
[421698934,1778046739000,-2343.98,0.00042465,30]
[421698931,1778046739000,-530.31007783,0.00042465,2]
[421698947,1778046739000,-2343.98,0.00042465,30]
[421698938,1778046739000,-2343.98,0.00042465,30]
[421698944,1778046739000,-2343.98,0.00042465,30]
[421698948,1778046739000,-2343.98,0.00042465,30]
[421698943,1778046739000,-2343.98,0.00042465,30]
[421698941,1778046739000,-2343.98,0.00042465,30]
[421698940,1778046739000,-2343.98,0.00042465,30]
[421698946,1778046739000,-2343.98,0.00042465,30]
[421698937,1778046739000,-2343.98,0.00042465,30]
[421698949,1778046739000,-2343.98,0.00042465,30]
[421698939,1778046739000,-2343.98,0.00042465,30]
[421698942,1778046739000,-2343.98,0.00042465,30]
[421699018,1778046740000,-188.07897027,0.00042465,120]
[421699008,1778046740000,-500.0,0.00042465,120]
[421699006,1778046740000,-500.0,0.00042465,120]
[421699013,1778046740000,-500.0,0.00042465,120]
[421699014,1778046740000,-215.24069481,0.00042465,120]
[421699011,1778046740000,-500.0,0.00042465,120]
[421699015,1778046740000,-218.63396636,0.00042465,120]
[421699020,1778046740000,-500.0,0.00042465,120]
[421699017,1778046740000,-207.81902566,0.00042465,120]
[421699007,1778046740000,-500.0,0.00042465,120]
[421699012,1778046740000,-312.50344782,0.00042465,120]
[421699026,1778046740000,-500.0,0.00042465,120]
[421699019,1778046740000,-500.0,0.00042465,120]
[421699021,1778046740000,-500.0,0.00042465,120]
[421699023,1778046740000,-500.0,0.00042465,120]
[421699022,1778046740000,-500.0,0.00042465,120]
[421699032,1778046740000,-500.0,0.00042465,120]
[421699027,1778046740000,-500.0,0.00042465,120]
[421699031,1778046740000,-500.0,0.00042465,120]
[421699025,1778046740000,-500.0,0.00042465,120]
[421699029,1778046740000,-500.0,0.00042465,120]
[421699005,1778046740000,-500.0,0.00042465,120]
[421699030,1778046740000,-209.57681152,0.00042465,120]
[421699016,1778046740000,-340.74527831,0.00042465,120]
[421699009,1778046740000,-500.0,0.00042465,120]
[421698998,1778046740000,-500.0,0.00042465,120]
[421699003,1778046740000,-500.0,0.00042465,120]
[421699024,1778046740000,-500.0,0.00042465,120]
[421698985,1778046740000,-215.76520577,0.00042465,120]
[421698986,1778046740000,-209.72018003,0.00042465,120]
[421698980,1778046740000,-2042.51,0.00042465,120]
[421698981,1778046740000,-2042.51,0.00042465,120]
[421698984,1778046740000,-500.0,0.00042465,120]
[421698983,1778046740000,-2042.68030461,0.00042465,120]
[421698982,1778046740000,-2042.51,0.00042465,120]
[421698987,1778046740000,-316.45412614,0.00042465,120]
[421698988,1778046740000,-197.62764003,0.00042465,120]
[421698995,1778046740000,-500.0,0.00042465,120]
[421699004,1778046740000,-500.0,0.00042465,120]
[421698994,1778046740000,-158.12039575,0.00042465,120]
[421698996,1778046740000,-500.0,0.00042465,120]
[421698992,1778046740000,-500.0,0.00042465,120]
[421698990,1778046740000,-170.35280383,0.00042465,120]
[421698993,1778046740000,-261.90593041,0.00042465,120]
[421698991,1778046740000,-500.0,0.00042465,120]
[421698997,1778046740000,-500.0,0.00042465,120]
[421699000,1778046740000,-500.0,0.00042465,120]
[421699002,1778046740000,-500.0,0.00042465,120]
[421698999,1778046740000,-500.0,0.00042465,120]
[421699010,1778046740000,-500.0,0.00042465,120]
[421699001,1778046740000,-500.0,0.00042465,120]
[421698989,1778046740000,-296.10451819,0.00042465,120]
[421699028,1778046740000,-500.0,0.00042465,120]
[421699041,1778046740000,-274.91411606,0.00042465,120]
[421699044,1778046740000,-500.0,0.00042465,120]
[421699060,1778046740000,-8795.81,0.00042465,120]
[421699064,1778046740000,-8795.81,0.00042465,120]
[421699067,1778046740000,-8795.81,0.00042465,120]
[421699065,1778046740000,-8795.81,0.00042465,120]
[421699066,1778046740000,-8795.81,0.00042465,120]
[421699080,1778046740000,-500.0,0.00042465,120]
[421699070,1778046740000,-8795.81,0.00042465,120]
[421699069,1778046740000,-8795.81,0.00042465,120]
[421699071,1778046740000,-8795.81,0.00042465,120]
[421699072,1778046740000,-8796.0313,0.00042465,120]
[421699078,1778046740000,-500.0,0.00042465,120]
[421699076,1778046740000,-500.0,0.00042465,120]
[421699079,1778046740000,-500.0,0.00042465,120]
[421699077,1778046740000,-500.0,0.00042465,120]
[421699073,1778046740000,-457.04624669,0.00042465,120]
[421699075,1778046740000,-166.66096138,0.00042465,120]
[421699082,1778046740000,-500.0,0.00042465,120]
[421699081,1778046740000,-500.0,0.00042465,120]
[421699083,1778046740000,-500.0,0.00042465,120]
[421699084,1778046740000,-500.0,0.00042465,120]
[421699085,1778046740000,-500.0,0.00042465,120]
[421699086,1778046740000,-500.0,0.00042465,120]
[421699034,1778046740000,-500.0,0.00042465,120]
[421699059,1778046740000,-8795.81,0.00042465,120]
[421699061,1778046740000,-8795.81,0.00042465,120]
[421699074,1778046740000,-500.0,0.00042465,120]
[421699063,1778046740000,-8795.81,0.00042465,120]
[421699068,1778046740000,-8795.81,0.00042465,120]
[421699040,1778046740000,-346.03763521,0.00042465,120]
[421699035,1778046740000,-500.0,0.00042465,120]
[421699043,1778046740000,-500.0,0.00042465,120]
[421699042,1778046740000,-154.48436396,0.00042465,120]
[421699033,1778046740000,-500.0,0.00042465,120]
[421699039,1778046740000,-199.7696019,0.00042465,120]
[421699036,1778046740000,-500.0,0.00042465,120]
[421699037,1778046740000,-500.0,0.00042465,120]
[421699045,1778046740000,-507.37462273,0.00042465,120]
[421699046,1778046740000,-380.30899489,0.00042465,120]
[421699050,1778046740000,-8795.81,0.00042465,120]
[421699038,1778046740000,-500.0,0.00042465,120]
[421699051,1778046740000,-8795.81,0.00042465,120]
[421699052,1778046740000,-193.66176302,0.00042465,120]
[421699058,1778046740000,-8795.81,0.00042465,120]
[421699057,1778046740000,-8795.81,0.00042465,120]
[421699056,1778046740000,-8795.81,0.00042465,120]
[421699055,1778046740000,-8795.81,0.00042465,120]
[421699062,1778046740000,-8795.81,0.00042465,120]
[421699054,1778046740000,-8795.81,0.00042465,120]
[421699047,1778046740000,-153.47537181,0.00042465,120]
[421699048,1778046740000,-8795.81,0.00042465,120]
[421699049,1778046740000,-8795.81,0.00042465,120]
[421699053,1778046740000,-8795.81,0.00042465,120]
[421699121,1778046741000,-1202.39,0.00042465,120]
[421699114,1778046741000,-1202.39,0.00042465,120]
[421699115,1778046741000,-1202.39,0.00042465,120]
[421699118,1778046741000,-158.09513822,0.00042465,120]
[421699120,1778046741000,-1202.39,0.00042465,120]
[421699122,1778046741000,-1202.39,0.00042465,120]
[421699119,1778046741000,-1202.39,0.00042465,120]
[421699111,1778046741000,-175.7183207,0.00042465,120]
[421699130,1778046741000,-500.0,0.00042465,120]
[421699129,1778046741000,-435.41729837,0.00042465,120]
[421699128,1778046741000,-229.54757575,0.00042465,120]
[421699131,1778046741000,-500.0,0.00042465,120]
[421699123,1778046741000,-1202.39,0.00042465,120]
[421699126,1778046741000,-1202.55899964,0.00042465,120]
[421699125,1778046741000,-1202.39,0.00042465,120]
[421699124,1778046741000,-1202.39,0.00042465,120]
[421699133,1778046741000,-445.01025436,0.00042465,120]
[421699132,1778046741000,-500.0,0.00042465,120]
[421699138,1778046741000,-500.0,0.00042465,120]
[421699141,1778046741000,-268.66396044,0.00042465,120]
[421699135,1778046741000,-470.37291249,0.00042465,120]
[421699136,1778046741000,-500.0,0.00042465,120]
[421699107,1778046741000,-1202.39,0.00042465,120]
[421699127,1778046741000,-561.39774132,0.00042465,120]
[421699113,1778046741000,-1202.39,0.00042465,120]
[421699092,1778046741000,-514.31533696,0.00042465,120]
[421699108,1778046741000,-1202.39,0.00042465,120]
[421699089,1778046741000,-500.0,0.00042465,120]
[421699087,1778046741000,-269.54836665,0.00042465,120]
[421699090,1778046741000,-362.44280552,0.00042465,120]
[421699088,1778046741000,-500.0,0.00042465,120]
[421699091,1778046741000,-500.0,0.00042465,120]
[421699093,1778046741000,-500.0,0.00042465,120]
[421699096,1778046741000,-1202.39,0.00042465,120]
[421699095,1778046741000,-500.0,0.00042465,120]
[421699097,1778046741000,-500.0,0.00042465,120]
[421699099,1778046741000,-500.0,0.00042465,120]
[421699101,1778046741000,-1202.39,0.00042465,120]
[421699094,1778046741000,-500.0,0.00042465,120]
[421699142,1778046741000,-500.0,0.00042465,120]
[421699098,1778046741000,-235.84128819,0.00042465,120]
[421699104,1778046741000,-202.58056933,0.00042465,120]
[421699103,1778046741000,-1202.39,0.00042465,120]
[421699102,1778046741000,-500.0,0.00042465,120]
[421699106,1778046741000,-1202.39,0.00042465,120]
[421699116,1778046741000,-1202.39,0.00042465,120]
[421699117,1778046741000,-1202.39,0.00042465,120]
[421699105,1778046741000,-1202.39,0.00042465,120]
[421699112,1778046741000,-1202.39,0.00042465,120]
[421699109,1778046741000,-1202.39,0.00042465,120]
[421699110,1778046741000,-1202.39,0.00042465,120]
[421699140,1778046741000,-156.17564085,0.00042465,120]
[421699100,1778046741000,-1202.39,0.00042465,120]
[421699137,1778046741000,-299.98771783,0.00042465,120]
[421699169,1778046741000,-353.13429713,0.00042465,120]
[421699166,1778046741000,-500.0,0.00042465,120]
[421699170,1778046741000,-264.9032198,0.00042465,120]
[421699171,1778046741000,-188.82210204,0.00042465,120]
[421699176,1778046741000,-500.0,0.00042465,120]
[421699174,1778046741000,-500.0,0.00042465,120]
[421699173,1778046741000,-500.0,0.00042465,120]
[421699175,1778046741000,-500.0,0.00042465,120]
[421699172,1778046741000,-500.0,0.00042465,120]
[421699180,1778046741000,-640.05,0.00042465,120]
[421699179,1778046741000,-500.0,0.00042465,120]
[421699181,1778046741000,-500.0,0.00042465,120]
[421699182,1778046741000,-640.05,0.00042465,120]
[421699184,1778046741000,-640.05,0.00042465,120]
[421699183,1778046741000,-262.77236117,0.00042465,120]